[Event "*** Titled Tuesday Blitz"]
[Site "Chess.com"]
[Date "2020.05.26"]
[Round "10"]
[White "BogdanBelyakov89"]
[Black "ChristopherYoo"]
[Result "0-1"]
[WhiteElo "2635"]
[BlackElo "2871"]
[TimeControl "180+1"]
[EndTime "12:03:50 PDT"]
[Termination "ChristopherYoo won by resignation"]

1. e4 {[%clk 0:03:00.9]} 1... c5 {[%clk 0:02:58.7]} 2. c3 {[%clk 0:03:01]} 2...
Nf6 {[%clk 0:02:55.4]} 3. e5 {[%clk 0:03:00.2]} 3... Nd5 {[%clk 0:02:56]} 4. Nf3
{[%clk 0:03:00.6]} 4... d6 {[%clk 0:02:54.3]} 5. d4 {[%clk 0:02:58.3]} 5... cxd4
{[%clk 0:02:53.6]} 6. cxd4 {[%clk 0:02:59.2]} 6... g6 {[%clk 0:02:46]} 7. Bc4
{[%clk 0:02:55.4]} 7... Nb6 {[%clk 0:02:45.8]} 8. Bb3 {[%clk 0:02:42.3]} 8...
Bg7 {[%clk 0:02:45.6]} 9. h3 {[%clk 0:02:28.9]} 9... O-O {[%clk 0:02:45.3]} 10.
O-O {[%clk 0:02:28.5]} 10... Nc6 {[%clk 0:02:43.4]} 11. Qe2 {[%clk 0:02:28]}
11... a5 {[%clk 0:02:14.5]} 12. a3 {[%clk 0:02:14]} 12... a4 {[%clk 0:02:13]}
13. Ba2 {[%clk 0:02:14.2]} 13... Bf5 {[%clk 0:01:48.8]} 14. Nc3 {[%clk
0:02:11.3]} 14... dxe5 {[%clk 0:01:45.7]} 15. d5 {[%clk 0:02:08.7]} 15... Nd4
{[%clk 0:01:44.8]} 16. Nxd4 {[%clk 0:02:06.4]} 16... exd4 {[%clk 0:01:45.7]} 17.
Nb5 {[%clk 0:02:04.4]} 17... Nxd5 {[%clk 0:01:36.7]} 18. Rd1 {[%clk 0:02:00.1]}
18... e5 {[%clk 0:00:56.5]} 19. Bxd5 {[%clk 0:01:39.7]} 19... Qxd5 {[%clk
0:00:57.4]} 20. Nc7 {[%clk 0:01:40.1]} 20... Qb3 {[%clk 0:00:57.1]} 21. Nxa8
{[%clk 0:01:39.2]} 21... Rxa8 {[%clk 0:00:58]} 22. Bg5 {[%clk 0:01:32.8]} 22...
Bc2 {[%clk 0:00:45.4]} 23. Rd2 {[%clk 0:01:22.9]} 23... d3 {[%clk 0:00:45]} 24.
Qf3 {[%clk 0:01:23.1]} 24... Qxb2 {[%clk 0:00:42.4]} 25. Re1 {[%clk 0:01:22.1]}
25... Qb3 {[%clk 0:00:23.9]} 26. Bf6 {[%clk 0:00:54.3]} 26... Qc3 {[%clk
0:00:23.5]} 27. Bg5 {[%clk 0:00:40.7]} 27... Qb3 {[%clk 0:00:21.7]} 28. Bf6
{[%clk 0:00:40.3]} 28... Qc3 {[%clk 0:00:21.9]} 29. Bg5 {[%clk 0:00:39.9]} 29...
Rb8 {[%clk 0:00:21.9]} 30. Qd5 {[%clk 0:00:34.5]} 30... h6 {[%clk 0:00:19.7]}
31. Be3 {[%clk 0:00:24]} 31... Qxa3 {[%clk 0:00:19.9]} 32. f4 {[%clk 0:00:17.7]}
32... Qb3 {[%clk 0:00:16.5]} 33. Qd6 {[%clk 0:00:16]} 33... Re8 {[%clk
0:00:16.6]} 34. f5 {[%clk 0:00:15]} 34... gxf5 {[%clk 0:00:14.4]} 35. Bxh6
{[%clk 0:00:15.1]} 35... Qe6 {[%clk 0:00:14.7]} 36. Qxe6 {[%clk 0:00:14.6]}
36... Rxe6 {[%clk 0:00:15.6]} 37. Bxg7 {[%clk 0:00:14.8]} 37... Kxg7 {[%clk
0:00:16.5]} 38. Kf2 {[%clk 0:00:15.2]} 38... f4 {[%clk 0:00:12.8]} 39. g3 {[%clk
0:00:15.2]} 39... fxg3+ {[%clk 0:00:13.2]} 40. Kxg3 {[%clk 0:00:14.9]} 40... f5
{[%clk 0:00:13.9]} 41. Kf3 {[%clk 0:00:15.3]} 41... Kf6 {[%clk 0:00:13.9]} 42.
Ke3 {[%clk 0:00:14.7]} 42... Rd6 {[%clk 0:00:13.2]} 43. Rg2 {[%clk 0:00:14.3]}
43... f4+ {[%clk 0:00:12.6]} 44. Kd2 {[%clk 0:00:14.6]} 44... Rd4 {[%clk
0:00:09.4]} 45. Reg1 {[%clk 0:00:13.7]} 45... e4 {[%clk 0:00:09.8]} 46. Rg6+
{[%clk 0:00:13.8]} 46... Kf7 {[%clk 0:00:10.3]} 47. Kc3 {[%clk 0:00:12.7]} 47...
Rd8 {[%clk 0:00:06.8]} 48. Rg7+ {[%clk 0:00:12.6]} 48... Ke6 {[%clk 0:00:06.8]}
49. R1g6+ {[%clk 0:00:12.7]} 49... Kd5 {[%clk 0:00:06.9]} 50. Rxb7 {[%clk
0:00:12.3]} 50... Rc8+ {[%clk 0:00:06.3]} 51. Kb2 {[%clk 0:00:12]} 51... e3
{[%clk 0:00:06.6]} 52. Rb5+ {[%clk 0:00:11.4]} 52... Ke4 {[%clk 0:00:06.9]} 53.
Rf6 {[%clk 0:00:10.7]} 53... e2 {[%clk 0:00:05.6]} 54. Rb7 {[%clk 0:00:10.7]}
54... Ke3 {[%clk 0:00:05.6]} 55. Re7+ {[%clk 0:00:10.8]} 55... Kd2 {[%clk
0:00:05.9]} 56. Rxf4 {[%clk 0:00:11.1]} 56... Rb8+ {[%clk 0:00:06.2]} 57. Ka3
{[%clk 0:00:10.3]} 57... e1=Q {[%clk 0:00:06.5]} 58. Rxe1 {[%clk 0:00:09.8]}
58... Kxe1 {[%clk 0:00:07.4]} 59. h4 {[%clk 0:00:10.3]} 59... d2 {[%clk
0:00:07.5]} 0-1

[Event "*** Titled Tuesday Blitz"]
[Site "Chess.com"]
[Date "2020.05.26"]
[Round "10"]
[White "Piotrek1979"]
[Black "Xeniya2005"]
[Result "1-0"]
[WhiteElo "2403"]
[BlackElo "2279"]
[TimeControl "180+1"]
[EndTime "12:03:51 PDT"]
[Termination "Piotrek1979 won by resignation"]

1. Nf3 {[%clk 0:03:00.9]} 1... d5 {[%clk 0:02:57.8]} 2. c4 {[%clk 0:02:59.4]}
2... d4 {[%clk 0:02:54.8]} 3. e3 {[%clk 0:02:58.1]} 3... Nc6 {[%clk 0:02:51.6]}
4. exd4 {[%clk 0:02:55.1]} 4... Nxd4 {[%clk 0:02:52.5]} 5. Nxd4 {[%clk
0:02:55.2]} 5... Qxd4 {[%clk 0:02:52]} 6. d3 {[%clk 0:02:56.1]} 6... e5 {[%clk
0:02:46.1]} 7. Nc3 {[%clk 0:02:52.2]} 7... c6 {[%clk 0:02:42.4]} 8. Be3 {[%clk
0:02:49.9]} 8... Qd8 {[%clk 0:02:41.8]} 9. Be2 {[%clk 0:02:49.7]} 9... Bf5
{[%clk 0:02:41.6]} 10. O-O {[%clk 0:02:47.8]} 10... Be7 {[%clk 0:02:41.6]} 11.
Qb3 {[%clk 0:02:34.9]} 11... Qc7 {[%clk 0:02:39]} 12. Rad1 {[%clk 0:02:32.9]}
12... Nf6 {[%clk 0:02:38.1]} 13. d4 {[%clk 0:02:14.4]} 13... exd4 {[%clk
0:02:37.7]} 14. Bxd4 {[%clk 0:02:14]} 14... O-O {[%clk 0:02:37.2]} 15. Rd2
{[%clk 0:02:06.6]} 15... h6 {[%clk 0:02:23.6]} 16. Rfd1 {[%clk 0:02:05]} 16...
Rfe8 {[%clk 0:02:21.9]} 17. g3 {[%clk 0:01:57.8]} 17... Ng4 {[%clk 0:02:11.4]}
18. Bf3 {[%clk 0:01:43.7]} 18... Bg5 {[%clk 0:02:00.2]} 19. Re2 {[%clk 0:01:42]}
19... Rxe2 {[%clk 0:01:55.4]} 20. Bxe2 {[%clk 0:01:41.9]} 20... Re8 {[%clk
0:01:53.6]} 21. Bf3 {[%clk 0:01:28.2]} 21... Ne5 {[%clk 0:01:50.2]} 22. Bg2
{[%clk 0:01:26.7]} 22... b6 {[%clk 0:01:18.9]} 23. f4 {[%clk 0:01:23.7]} 23...
Bg4 {[%clk 0:01:09.9]} 24. Rf1 {[%clk 0:01:22.5]} 24... Nd3 {[%clk 0:00:57]} 25.
fxg5 {[%clk 0:01:20.6]} 25... Qd7 {[%clk 0:00:56.5]} 26. Bxg7 {[%clk 0:00:47.4]}
26... Kxg7 {[%clk 0:00:51]} 27. gxh6+ {[%clk 0:00:47.3]} 27... Kg8 {[%clk
0:00:48.1]} 28. Nd5 {[%clk 0:00:47.3]} 28... cxd5 {[%clk 0:00:35.4]} 29. Qxd3
{[%clk 0:00:46.2]} 29... dxc4 {[%clk 0:00:31.5]} 30. h7+ {[%clk 0:00:41.4]}
30... Kh8 {[%clk 0:00:26.9]} 31. Qxd7 {[%clk 0:00:37.6]} 31... Bxd7 {[%clk
0:00:26.1]} 32. Rxf7 {[%clk 0:00:38.2]} 32... Bg4 {[%clk 0:00:20.4]} 33. Rf4
{[%clk 0:00:35]} 33... Be2 {[%clk 0:00:19.4]} 34. Re4 {[%clk 0:00:35.2]} 34...
Rxe4 {[%clk 0:00:17.8]} 35. Bxe4 {[%clk 0:00:35.1]} 35... b5 {[%clk 0:00:17]}
36. Kf2 {[%clk 0:00:34.3]} 36... Bh5 {[%clk 0:00:16.8]} 37. Ke3 {[%clk 0:00:34]}
37... Be8 {[%clk 0:00:14.9]} 38. Kd4 {[%clk 0:00:33.7]} 38... a5 {[%clk
0:00:15.1]} 39. Kc5 {[%clk 0:00:24.6]} 39... Kg7 {[%clk 0:00:14.5]} 40. g4
{[%clk 0:00:23.6]} 40... Kh8 {[%clk 0:00:13.9]} 41. g5 {[%clk 0:00:23.5]} 41...
Kg7 {[%clk 0:00:14.3]} 42. h4 {[%clk 0:00:23.5]} 42... Kh8 {[%clk 0:00:14]} 43.
a4 {[%clk 0:00:19.8]} 43... bxa4 {[%clk 0:00:12.5]} 44. Kxc4 {[%clk 0:00:20]}
44... Kg7 {[%clk 0:00:11.8]} 45. Kc5 {[%clk 0:00:20.1]} 45... Kh8 {[%clk
0:00:10.3]} 46. Kb6 {[%clk 0:00:20.2]} 46... Kg7 {[%clk 0:00:10.1]} 47. Kxa5
{[%clk 0:00:20.2]} 47... Kh8 {[%clk 0:00:09.7]} 48. Kb4 {[%clk 0:00:19.8]} 48...
Kg7 {[%clk 0:00:09.9]} 49. Bc2 {[%clk 0:00:19.7]} 49... Bd7 {[%clk 0:00:05.8]}
50. Bxa4 {[%clk 0:00:19.1]} 50... Bf5 {[%clk 0:00:06.3]} 51. h5 {[%clk
0:00:16.6]} 51... Kxh7 {[%clk 0:00:06]} 52. Be8 {[%clk 0:00:16.1]} 52... Kg7
{[%clk 0:00:05.9]} 53. h6+ {[%clk 0:00:15.7]} 53... Kh7 {[%clk 0:00:05.7]} 54.
Kc5 {[%clk 0:00:14.6]} 54... Kh8 {[%clk 0:00:03.5]} 55. g6 {[%clk 0:00:12.4]}
55... Kg8 {[%clk 0:00:03.8]} 56. Bf7+ {[%clk 0:00:09.5]} 56... Kh8 {[%clk
0:00:03.5]} 57. g7+ {[%clk 0:00:09.3]} 1-0

[Event "*** Titled Tuesday Blitz"]
[Site "Chess.com"]
[Date "2020.05.26"]
[Round "10"]
[White "diablanni"]
[Black "yamalchess"]
[Result "1-0"]
[WhiteElo "2337"]
[BlackElo "2476"]
[TimeControl "180+1"]
[EndTime "12:03:53 PDT"]
[Termination "diablanni won on time"]

1. e4 {[%clk 0:02:59.5]} 1... e5 {[%clk 0:02:59.1]} 2. Nf3 {[%clk 0:02:56.2]}
2... Nc6 {[%clk 0:02:59.3]} 3. d4 {[%clk 0:02:55.9]} 3... exd4 {[%clk
0:02:58.3]} 4. Nxd4 {[%clk 0:02:55.4]} 4... Nf6 {[%clk 0:02:58.3]} 5. Nxc6
{[%clk 0:02:55.3]} 5... bxc6 {[%clk 0:02:57.8]} 6. e5 {[%clk 0:02:55.9]} 6...
Qe7 {[%clk 0:02:57]} 7. Qe2 {[%clk 0:02:56.3]} 7... Nd5 {[%clk 0:02:57.2]} 8. c4
{[%clk 0:02:56.8]} 8... Ba6 {[%clk 0:02:57.7]} 9. b3 {[%clk 0:02:56.8]} 9... g5
{[%clk 0:02:57.9]} 10. g3 {[%clk 0:02:07.7]} 10... Bg7 {[%clk 0:02:57.4]} 11.
Bb2 {[%clk 0:01:58.6]} 11... O-O-O {[%clk 0:02:57]} 12. Nd2 {[%clk 0:01:37.2]}
12... Rde8 {[%clk 0:02:41.7]} 13. O-O-O {[%clk 0:01:34.1]} 13... Qb4 {[%clk
0:01:58.4]} 14. Qf3 {[%clk 0:00:16.1]} 14... Nb6 {[%clk 0:01:34.9]} 15. Bh3
{[%clk 0:00:15.2]} 15... Bxe5 {[%clk 0:01:26.9]} 16. Bxe5 {[%clk 0:00:14.8]}
16... Rxe5 {[%clk 0:01:27]} 17. Ne4 {[%clk 0:00:13.6]} 17... Kb8 {[%clk
0:01:18.1]} 18. Nf6 {[%clk 0:00:12.9]} 18... Bxc4 {[%clk 0:01:05.6]} 19. bxc4
{[%clk 0:00:12]} 19... Qxc4+ {[%clk 0:01:01.1]} 20. Kb1 {[%clk 0:00:11.6]} 20...
Ra5 {[%clk 0:01:00.8]} 21. Rd2 {[%clk 0:00:08.8]} 21... Qb4+ {[%clk 0:00:52.5]}
22. Rb2 {[%clk 0:00:08.8]} 22... Qd4 {[%clk 0:00:40.3]} 23. Rd1 {[%clk
0:00:08.5]} 23... Qc4 {[%clk 0:00:28.8]} 24. Nxd7+ {[%clk 0:00:07.4]} 24... Kb7
{[%clk 0:00:28.7]} 25. Rc1 {[%clk 0:00:05.7]} 25... Qd5 {[%clk 0:00:25.3]} 26.
Qxd5 {[%clk 0:00:05.3]} 26... Rxd5 {[%clk 0:00:25]} 27. Nc5+ {[%clk 0:00:03.7]}
27... Kb8 {[%clk 0:00:20.4]} 28. Bg2 {[%clk 0:00:04.1]} 28... Rd6 {[%clk
0:00:20.5]} 29. Na6+ {[%clk 0:00:03.8]} 29... Kb7 {[%clk 0:00:16.8]} 30. Nb4
{[%clk 0:00:04.1]} 30... a5 {[%clk 0:00:12.5]} 31. Nxc6 {[%clk 0:00:04.1]} 31...
Kc8 {[%clk 0:00:11.9]} 32. Nxa5 {[%clk 0:00:03.9]} 32... Re8 {[%clk 0:00:10.7]}
33. Rbc2 {[%clk 0:00:03.1]} 33... Re7 {[%clk 0:00:10]} 34. Nc4 {[%clk 0:00:03]}
34... Nxc4 {[%clk 0:00:09.4]} 35. Rxc4 {[%clk 0:00:03.6]} 35... Re5 {[%clk
0:00:09.7]} 36. R4c2 {[%clk 0:00:03.5]} 36... Rb5+ {[%clk 0:00:09.2]} 37. Ka1
{[%clk 0:00:03.9]} 37... Kd8 {[%clk 0:00:08.8]} 38. Rxc7 {[%clk 0:00:03.6]}
38... Rd2 {[%clk 0:00:07.1]} 39. R7c2 {[%clk 0:00:03.7]} 39... Rxc2 {[%clk
0:00:06.5]} 40. Rxc2 {[%clk 0:00:03.9]} 40... f5 {[%clk 0:00:06.5]} 41. Bf1
{[%clk 0:00:04.2]} 41... Rb4 {[%clk 0:00:06]} 42. a3 {[%clk 0:00:04]} 42... Rb3
{[%clk 0:00:06.3]} 43. Ka2 {[%clk 0:00:04.4]} 43... Rb6 {[%clk 0:00:05.4]} 44.
a4 {[%clk 0:00:04.4]} 44... Ke7 {[%clk 0:00:05.5]} 45. Bb5 {[%clk 0:00:04.8]}
45... Kd6 {[%clk 0:00:04.6]} 46. Kb3 {[%clk 0:00:05.4]} 46... Rb8 {[%clk
0:00:04]} 47. Kb4 {[%clk 0:00:05.9]} 47... f4 {[%clk 0:00:04.4]} 48. a5 {[%clk
0:00:06.3]} 48... Ke5 {[%clk 0:00:04.3]} 49. a6 {[%clk 0:00:06.3]} 49... Ke4
{[%clk 0:00:04.6]} 50. Ka5 {[%clk 0:00:06.6]} 50... Kf3 {[%clk 0:00:03.6]} 51.
Bc6+ {[%clk 0:00:06.7]} 51... Kg4 {[%clk 0:00:02.8]} 52. a7 {[%clk 0:00:07.6]}
52... Rc8 {[%clk 0:00:02.5]} 53. Bd7+ {[%clk 0:00:07.6]} 53... Kf3 {[%clk
0:00:01.9]} 54. Bxc8 {[%clk 0:00:08]} 54... fxg3 {[%clk 0:00:01.5]} 55. hxg3
{[%clk 0:00:08]} 1-0

[Event "*** Titled Tuesday Blitz"]
[Site "Chess.com"]
[Date "2020.05.26"]
[Round "10"]
[White "pedro_nascimento85"]
[Black "jd001"]
[Result "1/2-1/2"]
[WhiteElo "1883"]
[BlackElo "2154"]
[TimeControl "180+1"]
[EndTime "12:03:53 PDT"]
[Termination "Game drawn by repetition"]

1. d4 {[%clk 0:03:00.9]} 1... e6 {[%clk 0:02:59.7]} 2. e4 {[%clk 0:02:58.5]}
2... d5 {[%clk 0:02:58.1]} 3. exd5 {[%clk 0:02:58.4]} 3... exd5 {[%clk
0:02:57.3]} 4. Nf3 {[%clk 0:02:58.1]} 4... Bd6 {[%clk 0:02:57]} 5. c4 {[%clk
0:02:57]} 5... Nf6 {[%clk 0:02:55.9]} 6. c5 {[%clk 0:02:53.8]} 6... Be7 {[%clk
0:02:55]} 7. Nc3 {[%clk 0:02:52.6]} 7... O-O {[%clk 0:02:54.1]} 8. Be2 {[%clk
0:02:52.1]} 8... b6 {[%clk 0:02:54.1]} 9. cxb6 {[%clk 0:02:46.2]} 9... axb6
{[%clk 0:02:53.3]} 10. O-O {[%clk 0:02:46]} 10... c5 {[%clk 0:02:51.4]} 11. Bg5
{[%clk 0:02:24]} 11... c4 {[%clk 0:02:50.4]} 12. a4 {[%clk 0:02:19]} 12... Nc6
{[%clk 0:02:48.1]} 13. Ne5 {[%clk 0:02:11.4]} 13... Nb4 {[%clk 0:02:44]} 14. b3
{[%clk 0:02:01.4]} 14... cxb3 {[%clk 0:02:22.3]} 15. Qxb3 {[%clk 0:02:00.3]}
15... Ba6 {[%clk 0:02:15.1]} 16. Bxa6 {[%clk 0:01:56.3]} 16... Nxa6 {[%clk
0:02:07.1]} 17. Nc6 {[%clk 0:01:53.8]} 17... Qd7 {[%clk 0:02:01.3]} 18. Ne5
{[%clk 0:01:52.6]} 18... Qf5 {[%clk 0:01:55.5]} 19. Nf3 {[%clk 0:01:45.7]} 19...
Bb4 {[%clk 0:01:43.3]} 20. Bxf6 {[%clk 0:01:35.6]} 20... Bxc3 {[%clk 0:01:42.6]}
21. Qxc3 {[%clk 0:01:33]} 21... Qxf6 {[%clk 0:01:42.1]} 22. Qb3 {[%clk
0:01:30.8]} 22... Qd6 {[%clk 0:01:37.5]} 23. Rac1 {[%clk 0:01:25.7]} 23... Rfc8
{[%clk 0:01:35.4]} 24. Ne5 {[%clk 0:01:22.1]} 24... h6 {[%clk 0:01:32.3]} 25. h3
{[%clk 0:01:20.9]} 25... Nc7 {[%clk 0:01:23.5]} 26. Rc6 {[%clk 0:01:18.3]} 26...
Qe7 {[%clk 0:01:21.4]} 27. Rxb6 {[%clk 0:01:07.7]} 27... Ne6 {[%clk 0:01:20.8]}
28. Rb4 {[%clk 0:00:57.5]} 28... Qa7 {[%clk 0:01:18.6]} 29. Qd3 {[%clk
0:00:53.1]} 29... Qa5 {[%clk 0:01:15.8]} 30. Rfb1 {[%clk 0:00:41.7]} 30... g6
{[%clk 0:01:05.2]} 31. Rb7 {[%clk 0:00:23.3]} 31... Rc7 {[%clk 0:01:04.7]} 32.
Rxc7 {[%clk 0:00:21.9]} 32... Qxc7 {[%clk 0:01:00.4]} 33. Nf3 {[%clk 0:00:19.6]}
33... Kg7 {[%clk 0:00:58]} 34. Qb5 {[%clk 0:00:19]} 34... Ra5 {[%clk 0:00:54.9]}
35. Qb3 {[%clk 0:00:18.7]} 35... Qa7 {[%clk 0:00:52.1]} 36. Ra1 {[%clk
0:00:18.2]} 36... g5 {[%clk 0:00:47.4]} 37. Qd1 {[%clk 0:00:12.9]} 37... Qb6
{[%clk 0:00:43.5]} 38. Ra3 {[%clk 0:00:12.8]} 38... Qb4 {[%clk 0:00:43]} 39. Qb3
{[%clk 0:00:10.6]} 39... Qd6 {[%clk 0:00:38.8]} 40. Qd3 {[%clk 0:00:09.9]} 40...
Nf4 {[%clk 0:00:37.4]} 41. Qb3 {[%clk 0:00:08.2]} 41... Ra6 {[%clk 0:00:34]} 42.
a5 {[%clk 0:00:07.8]} 42... Qc6 {[%clk 0:00:32.8]} 43. Qa4 {[%clk 0:00:06.1]}
43... Qc1+ {[%clk 0:00:29.9]} 44. Kh2 {[%clk 0:00:05]} 44... Qf1 {[%clk
0:00:28.8]} 45. Ne1 {[%clk 0:00:03.3]} 45... Qxf2 {[%clk 0:00:27.9]} 46. Qb4
{[%clk 0:00:02.4]} 46... Rf6 {[%clk 0:00:25.7]} 47. Rf3 {[%clk 0:00:01.5]} 47...
Qe2 {[%clk 0:00:19.2]} 48. Qc3 {[%clk 0:00:02.4]} 48... Qe4 {[%clk 0:00:18.1]}
49. Rxf4 {[%clk 0:00:01.9]} 49... Qxf4+ {[%clk 0:00:16.9]} 50. Kg1 {[%clk
0:00:02.2]} 50... Qf2+ {[%clk 0:00:16.3]} 51. Kh2 {[%clk 0:00:02.9]} 51... Re6
{[%clk 0:00:14.6]} 52. Nf3 {[%clk 0:00:03.8]} 52... Qe3 {[%clk 0:00:13.2]} 53.
Qc5 {[%clk 0:00:04.3]} 53... Qf4+ {[%clk 0:00:12.8]} 54. Kg1 {[%clk 0:00:03.9]}
54... Re3 {[%clk 0:00:12.9]} 55. Kf2 {[%clk 0:00:03.9]} 55... Rxf3+ {[%clk
0:00:12.1]} 56. gxf3 {[%clk 0:00:03.4]} 56... Qd2+ {[%clk 0:00:12.6]} 57. Kg3
{[%clk 0:00:03.9]} 57... Qf4+ {[%clk 0:00:12.1]} 58. Kf2 {[%clk 0:00:04.3]}
58... Qd2+ {[%clk 0:00:12.1]} 59. Kg1 {[%clk 0:00:04.1]} 59... Qf4 {[%clk
0:00:11.6]} 60. Kf2 {[%clk 0:00:04.5]} 1/2-1/2

[Event "*** Titled Tuesday Blitz"]
[Site "Chess.com"]
[Date "2020.05.26"]
[Round "10"]
[White "attack2mateU"]
[Black "Chigorinetz"]
[Result "1-0"]
[WhiteElo "2687"]
[BlackElo "2520"]
[TimeControl "180+1"]
[EndTime "12:03:55 PDT"]
[Termination "attack2mateU won by resignation"]

1. e4 {[%clk 0:03:00.9]} 1... c5 {[%clk 0:02:59.7]} 2. Nf3 {[%clk 0:03:00.5]}
2... Nc6 {[%clk 0:02:59.5]} 3. d4 {[%clk 0:03:00]} 3... cxd4 {[%clk 0:02:58.9]}
4. Nxd4 {[%clk 0:03:00.9]} 4... g6 {[%clk 0:02:59.1]} 5. Nc3 {[%clk 0:02:58.2]}
5... Bg7 {[%clk 0:02:58.8]} 6. Be3 {[%clk 0:02:58.7]} 6... Nf6 {[%clk
0:02:58.4]} 7. Bc4 {[%clk 0:02:59.1]} 7... O-O {[%clk 0:02:57.5]} 8. Bb3 {[%clk
0:02:59.4]} 8... d6 {[%clk 0:02:57.3]} 9. f3 {[%clk 0:02:58.2]} 9... Qa5 {[%clk
0:02:56.9]} 10. Qd2 {[%clk 0:02:55.6]} 10... Nxd4 {[%clk 0:02:56.3]} 11. Bxd4
{[%clk 0:02:53.7]} 11... Be6 {[%clk 0:02:56.6]} 12. O-O-O {[%clk 0:02:45.8]}
12... b5 {[%clk 0:02:54.8]} 13. Kb1 {[%clk 0:02:11.3]} 13... b4 {[%clk
0:02:54.1]} 14. Ne2 {[%clk 0:02:06.7]} 14... Rfc8 {[%clk 0:02:51]} 15. h4 {[%clk
0:02:02.9]} 15... Rc6 {[%clk 0:02:49.6]} 16. Bxe6 {[%clk 0:01:47.6]} 16... fxe6
{[%clk 0:02:48.6]} 17. h5 {[%clk 0:01:44.7]} 17... Rac8 {[%clk 0:02:44.7]} 18.
hxg6 {[%clk 0:01:17.3]} 18... hxg6 {[%clk 0:02:31.9]} 19. c3 {[%clk 0:01:11.1]}
19... e5 {[%clk 0:02:02.2]} 20. cxb4 {[%clk 0:01:06.7]} 20... Qa6 {[%clk
0:01:55.6]} 21. Bc3 {[%clk 0:01:03.6]} 21... Kf7 {[%clk 0:01:42.9]} 22. Qd3
{[%clk 0:00:52.7]} 22... Qb7 {[%clk 0:01:40.6]} 23. Rc1 {[%clk 0:00:45.6]} 23...
Rc4 {[%clk 0:01:28.1]} 24. Bd2 {[%clk 0:00:44.3]} 24... Qb5 {[%clk 0:01:17.2]}
25. Rxc4 {[%clk 0:00:40.4]} 25... Rxc4 {[%clk 0:01:16.8]} 26. b3 {[%clk
0:00:29.1]} 26... Rxb4 {[%clk 0:01:11.4]} 27. Qc3 {[%clk 0:00:28.9]} 27... Ra4
{[%clk 0:01:11.3]} 28. Nc1 {[%clk 0:00:21.2]} 28... Ra6 {[%clk 0:01:10.5]} 29.
Qd3 {[%clk 0:00:20.3]} 29... Qb7 {[%clk 0:01:07.1]} 30. Ne2 {[%clk 0:00:19.1]}
30... Rc6 {[%clk 0:01:04.6]} 31. Rc1 {[%clk 0:00:19.3]} 31... Rxc1+ {[%clk
0:00:59.4]} 32. Bxc1 {[%clk 0:00:20.2]} 32... Bf8 {[%clk 0:00:54.1]} 33. Nc3
{[%clk 0:00:20.1]} 33... e6 {[%clk 0:00:53.7]} 34. Qb5 {[%clk 0:00:18.8]} 34...
Qc7 {[%clk 0:00:50.6]} 35. Bd2 {[%clk 0:00:17]} 35... Be7 {[%clk 0:00:47.6]} 36.
g3 {[%clk 0:00:16.9]} 36... Bd8 {[%clk 0:00:46]} 37. f4 {[%clk 0:00:17.1]} 37...
exf4 {[%clk 0:00:44.7]} 38. gxf4 {[%clk 0:00:18]} 38... Qb6 {[%clk 0:00:40.6]}
39. Qxb6 {[%clk 0:00:17.1]} 39... Bxb6 {[%clk 0:00:41.5]} 40. Kc2 {[%clk
0:00:17.2]} 40... Bd4 {[%clk 0:00:39.4]} 41. Kd3 {[%clk 0:00:17.2]} 41... e5
{[%clk 0:00:38.4]} 42. Nb5 {[%clk 0:00:16.1]} 42... Bb6 {[%clk 0:00:24]} 43.
Nxd6+ {[%clk 0:00:15.4]} 43... Ke6 {[%clk 0:00:24.1]} 44. Nc4 {[%clk 0:00:13.8]}
44... exf4 {[%clk 0:00:23.2]} 45. Nxb6 {[%clk 0:00:11.9]} 45... axb6 {[%clk
0:00:23.1]} 46. Bxf4 {[%clk 0:00:12.5]} 46... Nd7 {[%clk 0:00:21.8]} 47. Kd4
{[%clk 0:00:10.2]} 47... Nc5 {[%clk 0:00:20.7]} 48. Bc7 {[%clk 0:00:09.4]} 48...
Nd7 {[%clk 0:00:20.4]} 49. a4 {[%clk 0:00:08.6]} 49... g5 {[%clk 0:00:19.8]} 50.
b4 {[%clk 0:00:08.9]} 50... g4 {[%clk 0:00:19.3]} 51. a5 {[%clk 0:00:09.2]}
51... bxa5 {[%clk 0:00:19]} 52. bxa5 {[%clk 0:00:10.1]} 52... Nf8 {[%clk
0:00:08.7]} 53. a6 {[%clk 0:00:10]} 53... Kd7 {[%clk 0:00:08.7]} 54. Bg3 {[%clk
0:00:08.8]} 54... Ne6+ {[%clk 0:00:06.7]} 55. Kd5 {[%clk 0:00:08.7]} 55... Nc7+
{[%clk 0:00:05.7]} 56. Bxc7 {[%clk 0:00:05.6]} 56... Kxc7 {[%clk 0:00:06.6]} 57.
Kd4 {[%clk 0:00:05.5]} 57... Kb6 {[%clk 0:00:04.8]} 58. e5 {[%clk 0:00:06.1]}
58... Kxa6 {[%clk 0:00:04.3]} 59. e6 {[%clk 0:00:06]} 59... Kb7 {[%clk
0:00:04.7]} 60. e7 {[%clk 0:00:05.9]} 60... Kc7 {[%clk 0:00:04.9]} 61. e8=Q
{[%clk 0:00:06.4]} 61... Kd6 {[%clk 0:00:04.8]} 62. Qe5+ {[%clk 0:00:06.8]} 1-0